bitfinex/quotes_SOLUSD_20250106
["timestamp","ask_amount","ask_price","bid_price","bid_amount"]
[1736177133466,14.77452063,221.77,221.7,14.77452063]
[1736177133668,14.77452063,221.77,221.71,14.77452063]
[1736177133992,7.82413426,221.81,221.75,14.77452063]
[1736177134164,22.59865489,221.81,221.74,14.77452063]
[1736177134360,7.82413426,221.81,221.76,14.77452063]
[1736177134667,6.507,221.87,221.8,14.77452063]
[1736177134864,6.507,221.87,221.71,20.0]
[1736177135891,14.77452063,221.85,221.78,14.77452063]
[1736177136388,6.507,221.87,221.8,14.77452063]
[1736177136389,21.28152063,221.87,221.8,14.77452063]
[1736177136906,6.507,221.87,221.81,14.77452063]
[1736177137962,6.507,221.87,221.82,14.77452063]
[1736177138369,6.507,221.87,221.81,14.77452063]
[1736177138687,6.507,221.87,221.84,14.77452063]
[1736177138869,1.645,221.9,221.84,14.77452063]
[1736177139463,14.77452063,221.86,221.75,2.62]
[1736177139662,14.77452063,221.84,221.77,14.77452063]
[1736177139864,14.77452063,221.85,221.78,14.77452063]
[1736177140063,14.77452063,221.84,221.78,14.77452063]
[1736177140309,14.77452063,221.79,221.67,1.532]
[1736177140608,14.77452063,221.76,221.69,14.77452063]
[1736177140891,34.77452063,221.78,221.71,14.77452063]
[1736177141578,14.77452063,221.77,221.7,14.77452063]
[1736177142866,14.77452063,221.76,221.64,2.62]
[1736177143069,14.77452063,221.75,221.68,14.77452063]
[1736177143296,14.77452063,221.71,221.64,14.77452063]
[1736177143499,20.0,221.74,221.68,14.77452063]
[1736177143794,13.72732563,221.78,221.62,20.0]
[1736177143990,1.6376,221.8,221.63,8.51138199]
[1736177144176,1.6376,221.8,221.78,14.77452063]
[1736177144377,6.6639,221.81,221.78,14.77452063]
[1736177144577,21.43842063,221.81,221.74,14.77452063]
[1736177144786,14.77452063,221.8,221.73,14.77452063]
[1736177145180,21.43842063,221.81,221.74,14.77452063]
[1736177145487,21.43842063,221.81,221.7,2.62]
[1736177145488,14.77452063,221.8,221.73,14.77452063]
[1736177147421,14.77452063,221.79,221.72,14.77452063]
[1736177147578,14.77452063,221.78,221.71,14.77452063]
[1736177147915,8.47545761,221.81,221.67,14.77452063]
[1736177147916,14.77452063,221.74,221.67,14.77452063]
[1736177148489,14.77452063,221.73,221.66,17.39452063]
[1736177148694,14.77452063,221.72,221.66,2.62]
[1736177148930,1.6618,221.75,221.66,17.39452063]
[1736177149094,1.6618,221.75,221.68,14.77452063]
[1736177149095,16.43632063,221.75,221.68,14.77452063]
[1736177149301,1.6618,221.75,221.69,14.77452063]
[1736177150296,16.43632063,221.75,221.68,14.77452063]
[1736177150692,14.77452063,221.73,221.67,14.77452063]
[1736177150931,14.77452063,221.74,221.67,14.77452063]
[1736177151509,16.43632063,221.75,221.66,2.62]
[1736177151721,1.6618,221.75,221.69,14.77452063]
[1736177152529,16.42432063,221.8,221.73,14.77452063]
[1736177153226,14.77452063,221.79,221.72,14.77452063]
[1736177153697,14.77452063,221.78,221.71,14.77452063]
[1736177154022,14.77452063,221.76,221.69,14.77452063]
[1736177154198,14.77452063,221.76,221.7,14.77452063]
[1736177154396,14.77452063,221.76,221.69,14.77452063]
[1736177154613,14.77452063,221.77,221.7,14.77452063]
[1736177154823,14.77452063,221.76,221.69,14.77452063]
[1736177155404,14.77452063,221.74,221.73,11.840859]
[1736177156218,14.77452063,221.75,221.73,11.840859]
[1736177156412,14.77452063,221.78,221.73,11.840859]
[1736177156797,20.0,221.78,221.73,11.840859]
[1736177157008,14.77452063,221.76,221.73,11.840859]
[1736177157216,34.77452063,221.78,221.73,11.840859]
[1736177157402,20.0,221.78,221.73,26.61537963]
[1736177157599,1.6498,221.8,221.74,14.77452063]
[1736177158413,16.42432063,221.8,221.73,26.61537963]
[1736177160033,14.77452063,221.78,221.73,11.840859]
[1736177160242,14.77452063,221.77,221.73,11.840859]
[1736177160450,14.77452063,221.78,221.73,11.840859]
[1736177161703,14.77452063,221.77,221.73,11.840859]
[1736177162315,34.77452063,221.78,221.73,11.840859]
[1736177162631,14.77452063,221.79,221.73,11.840859]
[1736177162832,14.77452063,221.82,221.75,14.77452063]
[1736177163003,1.7974501,221.83,221.77,14.77452063]
[1736177163205,14.77452063,221.84,221.77,14.77452063]
[1736177163802,14.77452063,221.83,221.76,14.77452063]
[1736177164227,14.77452063,221.82,221.75,14.77452063]
[1736177166804,14.77452063,221.81,221.74,17.39452063]
[1736177167802,14.77452063,221.82,221.75,14.77452063]
[1736177168000,14.77452063,221.82,221.76,14.77452063]
[1736177168202,6.0418,221.87,221.76,14.77452063]
[1736177168203,6.0418,221.87,221.81,14.77452063]
[1736177168427,14.77452063,221.89,221.82,14.77452063]
[1736177168927,20.0,221.86,221.82,14.77452063]
[1736177169112,6.97004698,221.9,221.83,14.77452063]
[1736177169113,21.74456761,221.9,221.83,14.77452063]
[1736177169310,21.74456761,221.9,221.76,14.77452063]
[1736177169311,6.97004698,221.9,221.84,14.77452063]
[1736177169638,14.77452063,221.88,221.81,14.77452063]
[1736177170613,14.77452063,221.89,221.82,14.77452063]
[1736177171240,14.77452063,221.87,221.81,14.77452063]
[1736177171463,14.77452063,221.85,221.78,14.77452063]
[1736177171735,20.0,221.84,221.78,14.77452063]
[1736177171939,34.77452063,221.84,221.78,14.77452063]
[1736177172402,34.77452063,221.84,221.73,14.460859]
[1736177172403,14.77452063,221.82,221.76,14.77452063]
[1736177172612,14.77452063,221.8,221.74,14.77452063]
[1736177173328,14.77452063,221.81,221.75,14.77452063]
[1736177173656,14.77452063,221.77,221.73,11.840859]
[1736177173834,14.77452063,221.75,221.73,11.840859]
[1736177174528,14.77452063,221.74,221.73,11.840859]
[1736177179500,11.2742,221.75,221.73,11.840859]
[1736177179783,14.77452063,221.74,221.73,11.840859]
[1736177180691,11.2723,221.79,221.73,11.840859]
[1736177180865,8.47274698,221.81,221.76,14.77452063]
[1736177181070,13.34184698,221.82,221.79,14.77452063]
[1736177181273,6.97004698,221.82,221.81,14.77452063]
[1736177181771,14.77452063,221.9,221.81,14.77452063]
[1736177181974,14.77452063,221.89,221.83,14.77452063]
[1736177182182,14.77452063,221.89,221.74,11.95069837]
[1736177182362,14.77452063,221.91,221.84,14.77452063]
[1736177182564,14.77452063,221.92,221.86,14.77452063]
[1736177182757,6.97004698,221.97,221.89,14.77452063]
[1736177182976,14.77452063,221.96,221.9,14.77452063]
[1736177183152,21.74456761,221.97,221.91,14.77452063]
[1736177183369,14.77452063,221.94,221.88,14.77452063]
[1736177183574,20.0,221.93,221.79,2.62]
[1736177183764,14.77452063,221.86,221.8,14.77452063]
[1736177183959,14.77452063,221.88,221.82,14.77452063]
[1736177184169,20.0,221.93,221.8,14.77452063]
[1736177184170,14.77452063,221.86,221.8,14.77452063]
[1736177184465,14.77452063,221.84,221.79,2.62]
[1736177184670,14.77452063,221.83,221.79,2.62]
[1736177184875,11.2658,221.91,221.8,14.77452063]
[1736177185079,14.77452063,221.84,221.79,2.62]
[1736177185679,14.77452063,221.83,221.79,2.62]
[1736177185887,14.77452063,221.84,221.79,2.62]
[1736177186096,1.81461229,221.93,221.82,14.77452063]
[1736177186269,14.77452063,221.89,221.82,14.77452063]
[1736177186589,14.77452063,221.87,221.79,2.62]
[1736177186895,14.77452063,221.89,221.82,14.77452063]
[1736177187093,14.77452063,221.88,221.81,14.77452063]
[1736177187282,14.77452063,221.89,221.82,14.77452063]
[1736177187482,14.77452063,221.89,221.79,2.62]
[1736177187683,23.61478931,221.88,221.81,23.61478931]
[1736177187881,23.61478931,221.86,221.8,23.61478931]
[1736177188092,23.61478931,221.85,221.79,2.62]
[1736177188394,23.61478931,221.83,221.77,23.61478931]
[1736177188593,23.61478931,221.87,221.75,2.62]
[1736177188799,23.61478931,221.81,221.75,2.62]
[1736177189473,23.61478931,221.79,221.73,35.45564831]
[1736177189997,23.61478931,221.77,221.73,11.840859]
[1736177190368,23.61478931,221.74,221.73,11.840859]
[1736177191909,31.76778931,221.74,221.73,4.820859]
[1736177192079,31.76778931,221.74,221.73,2.004159]
[1736177192396,20.0,221.7,221.59,23.61478931]
[1736177192696,23.61478931,221.66,221.59,23.61478931]
[1736177192874,23.61478931,221.66,221.6,23.61478931]
[1736177193075,23.61478931,221.66,221.59,23.61478931]
[1736177193386,23.61478931,221.64,221.57,23.61478931]
[1736177193708,11.2766,221.7,221.55,23.61478931]
[1736177193709,23.61478931,221.62,221.55,23.61478931]
[1736177193873,23.61478931,221.62,221.53,7.7201]
[1736177193874,23.61478931,221.64,221.57,23.61478931]
[1736177194197,23.61478931,221.65,221.59,23.61478931]
[1736177194387,23.61478931,221.64,221.57,23.61478931]
[1736177194786,23.61478931,221.65,221.58,23.61478931]
[1736177194990,20.0,221.71,221.64,23.61478931]
[1736177195193,20.0,221.71,221.66,23.61478931]
[1736177195398,43.61478931,221.71,221.65,23.61478931]
[1736177195589,23.61478931,221.68,221.62,23.61478931]
[1736177196082,23.61478931,221.7,221.63,23.61478931]
[1736177196401,23.61478931,221.68,221.61,23.61478931]
[1736177196580,23.61478931,221.64,221.58,23.61478931]
[1736177196782,23.61478931,221.64,221.57,23.61478931]
[1736177197176,23.61478931,221.62,221.56,23.61478931]
[1736177197407,23.61478931,221.61,221.54,23.61478931]
[1736177197793,23.61478931,221.61,221.55,23.61478931]
[1736177198013,23.61478931,221.63,221.52,2.62]
[1736177198178,23.61478931,221.63,221.51,20.0]
[1736177198179,23.61478931,221.62,221.56,23.61478931]
[1736177198704,23.61478931,221.62,221.55,23.61478931]
[1736177198905,23.61478931,221.62,221.56,23.61478931]
[1736177199212,23.61478931,221.62,221.55,23.61478931]
[1736177199407,23.61478931,221.61,221.54,23.61478931]
[1736177199706,23.61478931,221.62,221.55,23.61478931]
[1736177200084,23.61478931,221.62,221.56,23.61478931]
[1736177200806,23.61478931,221.63,221.56,23.61478931]
[1736177201010,23.61478931,221.62,221.55,23.61478931]
[1736177201811,23.61478931,221.63,221.55,23.61478931]
[1736177201994,23.61478931,221.63,221.56,23.61478931]
[1736177202195,23.61478931,221.62,221.55,23.61478931]
[1736177202693,23.61478931,221.57,221.5,23.61478931]
[1736177203100,23.61478931,221.58,221.51,23.61478931]
[1736177203414,7.6133,221.66,221.49,20.0]
[1736177203609,7.6133,221.66,221.5,0.67688509]
[1736177204607,7.6133,221.66,221.61,23.61478931]
[1736177205193,7.6133,221.66,221.62,23.61478931]
[1736177205609,7.6133,221.66,221.61,23.61478931]
[1736177205814,31.22808931,221.66,221.59,23.61478931]
[1736177206014,31.22808931,221.66,221.54,26.23478931]
[1736177206015,7.6133,221.66,221.61,23.61478931]
[1736177206228,23.61478931,221.7,221.63,23.61478931]
[1736177206394,20.0,221.67,221.63,23.61478931]
[1736177207918,20.0,221.68,221.63,23.61478931]
[1736177208508,20.0,221.67,221.64,23.61478931]
[1736177208713,20.0,221.67,221.63,23.61478931]
[1736177209125,43.61478931,221.68,221.62,23.61478931]
[1736177209309,20.0,221.68,221.63,23.61478931]
[1736177209620,31.72518931,221.71,221.65,23.61478931]
[1736177209803,8.1104,221.71,221.66,23.61478931]
[1736177210011,8.1104,221.71,221.67,23.61478931]
[1736177210204,23.61478931,221.74,221.68,23.61478931]
[1736177210508,8.0387,221.76,221.7,23.61478931]
[1736177210710,23.61478931,221.8,221.73,23.61478931]
[1736177211435,7.7631,221.81,221.77,23.61478931]
[1736177211596,31.37788931,221.81,221.75,23.61478931]
[1736177211801,23.61478931,221.79,221.68,11.2773]
[1736177212041,23.61478931,221.79,221.72,23.61478931]
[1736177212313,23.61478931,221.78,221.72,23.61478931]
[1736177212514,23.61478931,221.8,221.74,23.61478931]
[1736177212719,23.61478931,221.76,221.7,23.61478931]
[1736177213731,23.61478931,221.77,221.71,23.61478931]
[1736177214219,23.61478931,221.79,221.72,23.61478931]
[1736177214411,43.61478931,221.78,221.72,23.61478931]
[1736177214611,23.61478931,221.77,221.71,23.61478931]
[1736177215005,20.0,221.78,221.72,23.61478931]
[1736177215202,20.0,221.78,221.67,2.62]
[1736177215203,20.0,221.78,221.74,23.61478931]
[1736177215403,20.0,221.78,221.73,23.61478931]
[1736177215624,43.61478931,221.78,221.72,23.61478931]
[1736177215823,23.61478931,221.8,221.74,23.61478931]
[1736177216022,23.61478931,221.82,221.76,23.61478931]
[1736177216726,23.61478931,221.82,221.75,23.61478931]
[1736177216727,43.61478931,221.82,221.75,23.61478931]
[1736177216922,43.61478931,221.82,221.76,23.61478931]
[1736177217125,23.61478931,221.81,221.75,23.61478931]
[1736177217306,23.61478931,221.78,221.72,23.61478931]
[1736177218103,20.0,221.82,221.71,23.61478931]
[1736177218104,23.61478931,221.77,221.71,23.61478931]
[1736177219431,23.61478931,221.74,221.68,46.23478931]
[1736177219727,23.61478931,221.71,221.66,2.6]
[1736177220215,11.2708,221.82,221.66,23.61478931]
[1736177220216,23.61478931,221.73,221.66,23.61478931]
[1736177220415,23.61478931,221.76,221.7,23.61478931]
[1736177220623,23.61478931,221.75,221.69,23.61478931]
[1736177220817,23.61478931,221.76,221.69,23.61478931]
[1736177221027,23.61478931,221.73,221.67,23.61478931]
[1736177221327,23.61478931,221.71,221.64,23.61478931]
[1736177221527,23.61478931,221.72,221.65,23.61478931]
[1736177222027,23.61478931,221.71,221.65,23.61478931]
[1736177222213,23.61478931,221.7,221.63,23.61478931]
[1736177222419,1.6214,221.74,221.62,23.61478931]
[1736177222630,23.61478931,221.69,221.62,23.61478931]
[1736177222935,23.61478931,221.68,221.62,43.61478931]
[1736177223234,23.61478931,221.68,221.6,2.6]
[1736177223235,23.61478931,221.68,221.61,23.61478931]
[1736177223442,23.61478931,221.64,221.57,23.61478931]
[1736177223634,23.61478931,221.64,221.57,26.21478931]
[1736177224141,23.61478931,221.64,221.58,23.61478931]
[1736177224528,23.61478931,221.63,221.56,23.61478931]
[1736177225049,23.61478931,221.62,221.56,23.61478931]
[1736177225540,23.61478931,221.64,221.57,23.61478931]
[1736177225744,23.61478931,221.63,221.56,23.61478931]
[1736177226141,23.61478931,221.62,221.55,23.61478931]
[1736177226517,23.61478931,221.59,221.53,23.61478931]
[1736177226722,23.61478931,221.59,221.52,23.61478931]
[1736177228144,23.61478931,221.6,221.53,23.61478931]
[1736177228446,23.61478931,221.59,221.52,23.61478931]
[1736177228852,23.61478931,221.59,221.53,23.61478931]
[1736177229027,23.61478931,221.59,221.52,23.61478931]
[1736177229231,23.61478931,221.58,221.52,23.61478931]
[1736177229422,23.61478931,221.59,221.52,23.61478931]
[1736177230241,1.5833,221.63,221.52,23.61478931]
[1736177230242,23.61478931,221.58,221.52,23.61478931]
[1736177230728,23.61478931,221.58,221.51,23.61478931]
[1736177230931,23.61478931,221.59,221.53,23.61478931]
[1736177231244,1.5833,221.63,221.58,23.61478931]
[1736177231451,7.9797,221.69,221.62,23.61478931]
[1736177231747,7.9797,221.69,221.54,25.18118931]
[1736177231960,23.61478931,221.68,221.62,23.61478931]
[1736177232123,20.0,221.66,221.5,31.2866]
[1736177233250,23.61478931,221.61,221.54,23.61478931]
[1736177234151,20.0,221.66,221.54,23.61478931]
[1736177234152,23.61478931,221.6,221.54,23.61478931]
[1736177234653,23.61478931,221.61,221.55,23.61478931]
[1736177235138,31.59448931,221.69,221.6,23.61478931]
[1736177235450,7.9797,221.69,221.63,23.61478931]
[1736177235653,7.9797,221.69,221.65,23.61478931]
[1736177236549,31.59448931,221.69,221.62,23.61478931]
[1736177236739,43.61478931,221.66,221.6,23.61478931]
[1736177237142,23.61478931,221.63,221.57,23.61478931]
[1736177237434,23.61478931,221.64,221.58,23.61478931]
[1736177238040,43.61478931,221.65,221.58,23.61478931]
[1736177238254,18.0,221.64,221.6,23.61478931]
[1736177238555,23.61478931,221.68,221.62,23.61478931]
[1736177238757,7.9797,221.69,221.64,23.61478931]
[1736177239952,7.9797,221.69,221.54,23.61478931]
[1736177239953,31.59448931,221.69,221.63,23.61478931]
[1736177240640,23.61478931,221.65,221.59,23.61478931]
[1736177240964,23.61478931,221.64,221.57,23.61478931]
[1736177241257,43.61478931,221.66,221.59,23.61478931]
[1736177242358,20.0,221.64,221.6,23.61478931]
[1736177242746,19.2567,221.69,221.63,23.61478931]
[1736177243059,7.9797,221.69,221.64,23.61478931]
[1736177243657,7.9797,221.69,221.65,23.61478931]
[1736177244263,7.9797,221.69,221.66,23.61478931]
[1736177244438,7.9797,221.69,221.65,23.61478931]
[1736177244637,7.9797,221.69,221.66,23.61478931]
[1736177245558,7.9797,221.69,221.65,23.61478931]
[1736177245754,7.9797,221.69,221.66,23.61478931]
[1736177246140,7.9797,221.69,221.65,23.61478931]
[1736177246443,43.61478931,221.66,221.58,23.61478931]
[1736177246769,23.61478931,221.63,221.56,23.61478931]
[1736177247559,23.61478931,221.63,221.5,2.6]
[1736177247560,23.61478931,221.65,221.58,23.61478931]
[1736177247763,20.0,221.62,221.57,23.61478931]
[1736177248263,23.61478931,221.64,221.57,23.61478931]
[1736177248472,20.0,221.62,221.58,23.61478931]
[1736177248880,20.0,221.62,221.57,23.61478931]
[1736177249174,18.0,221.62,221.56,23.61478931]
[1736177249339,18.0,221.62,221.57,23.61478931]
[1736177249658,23.61478931,221.62,221.56,23.61478931]
[1736177250060,23.61478931,221.63,221.56,23.61478931]
[1736177250661,11.279,221.65,221.49,2.6]
[1736177250662,34.89378931,221.65,221.59,23.61478931]
[1736177250960,23.61478931,221.61,221.55,23.61478931]
[1736177251360,43.61478931,221.62,221.56,23.61478931]
[1736177251552,43.61478931,221.62,221.43,30.17198931]
[1736177251553,7.9257,221.58,221.44,13.8894]
[1736177251754,20.0,221.55,221.43,25.17198931]
[1736177251962,20.0,221.55,221.44,2.6]
[1736177252754,20.0,221.55,221.5,23.61478931]
[1736177253040,23.61478931,221.54,221.48,23.61478931]
[1736177253549,23.61478931,221.5,221.44,23.61478931]
[1736177253748,23.61478931,221.48,221.42,23.61478931]
[1736177253959,23.61478931,221.47,221.41,23.61478931]
[1736177254168,23.61478931,221.46,221.4,23.61478931]
[1736177254970,23.61478931,221.46,221.39,23.61478931]
[1736177255135,43.61478931,221.43,221.33,2.6]
[1736177255339,23.61478931,221.39,221.33,23.61478931]
[1736177255563,23.61478931,221.38,221.32,23.61478931]
[1736177255751,23.61478931,221.35,221.29,23.61478931]
[1736177255954,51.21478931,221.43,221.28,6.71861531]
[1736177256273,5.0,221.41,221.28,6.71861531]
[1736177256686,5.0,221.41,221.25,6.71861531]
[1736177256839,48.02140724,221.43,221.25,6.71861531]
[1736177257165,20.0,221.35,221.33,23.61478931]
[1736177257339,23.61478931,221.39,221.32,23.61478931]
[1736177257538,23.61478931,221.38,221.32,23.61478931]
[1736177257770,23.61478931,221.38,221.31,23.61478931]
[1736177257971,23.61478931,221.39,221.33,23.61478931]
[1736177258270,23.61478931,221.4,221.34,23.61478931]
[1736177258455,23.61478931,221.41,221.35,23.61478931]
[1736177258653,23.61478931,221.36,221.22,2.6]
[1736177258854,23.61478931,221.32,221.26,23.61478931]
[1736177259059,23.61478931,221.34,221.27,23.61478931]
[1736177259273,23.61478931,221.35,221.29,23.61478931]
[1736177259452,23.61478931,221.35,221.28,23.61478931]
[1736177259956,23.61478931,221.36,221.3,23.61478931]
[1736177260756,23.61478931,221.37,221.3,23.61478931]
[1736177260958,23.61478931,221.43,221.22,13.9006]
[1736177260959,23.61478931,221.38,221.31,23.61478931]
[1736177261271,23.61478931,221.36,221.3,23.61478931]
[1736177261476,23.61478931,221.37,221.31,23.61478931]
[1736177261781,20.0,221.4,221.3,23.61478931]
[1736177261782,23.61478931,221.36,221.3,23.61478931]
[1736177261984,23.61478931,221.37,221.31,23.61478931]
[1736177262685,20.0,221.4,221.33,23.61478931]
[1736177262686,23.61478931,221.39,221.33,23.61478931]
[1736177262865,23.61478931,221.4,221.33,23.61478931]
[1736177263180,23.61478931,221.39,221.33,23.61478931]
[1736177263581,23.61478931,221.38,221.32,23.61478931]
[1736177263872,23.61478931,221.39,221.33,23.61478931]
[1736177265277,23.61478931,221.38,221.32,23.61478931]
[1736177266262,23.61478931,221.39,221.32,23.61478931]
[1736177266857,43.61478931,221.4,221.34,23.61478931]
[1736177267069,20.0,221.4,221.37,23.61478931]
[1736177267367,23.61478931,221.42,221.36,23.61478931]
[1736177267546,23.61478931,221.41,221.35,23.61478931]
[1736177268169,23.61478931,221.4,221.33,23.61478931]
[1736177268360,23.61478931,221.41,221.35,23.61478931]
[1736177269279,23.61478931,221.4,221.33,23.61478931]
[1736177269477,23.61478931,221.39,221.32,23.61478931]
[1736177269649,20.0,221.43,221.28,11.2976]
[1736177269855,14.66082256,221.46,221.34,6.85770506]
[1736177270162,23.61478931,221.42,221.35,23.61478931]
[1736177270362,23.61478931,221.4,221.33,23.61478931]
[1736177270965,23.61478931,221.39,221.33,23.61478931]
[1736177271478,14.66082256,221.46,221.34,23.61478931]
[1736177271479,23.61478931,221.41,221.34,23.61478931]
[1736177271776,14.66082256,221.46,221.36,23.61478931]
[1736177271777,23.61478931,221.43,221.36,23.61478931]
[1736177272089,23.61478931,221.44,221.38,23.61478931]
[1736177272665,23.61478931,221.43,221.36,23.61478931]
[1736177272869,23.61478931,221.44,221.37,23.61478931]
[1736177273855,23.61478931,221.43,221.36,23.61478931]
[1736177274071,23.61478931,221.43,221.34,6.85770506]
[1736177274270,23.61478931,221.43,221.36,23.61478931]
[1736177274580,23.61478931,221.43,221.31,13.71541012]
[1736177274581,23.61478931,221.37,221.31,13.71541012]
[1736177274770,23.61478931,221.33,221.31,13.71541012]
[1736177274964,23.61478931,221.35,221.29,13.71541012]
[1736177275857,23.61478931,221.35,221.28,23.61478931]
[1736177276055,23.61478931,221.34,221.27,23.61478931]
[1736177277174,23.61478931,221.35,221.28,23.61478931]
[1736177277365,23.61478931,221.36,221.29,23.61478931]
[1736177277569,23.61478931,221.38,221.31,23.61478931]
[1736177277767,14.66122256,221.46,221.35,23.61478931]
[1736177277971,20.0,221.39,221.35,23.61478931]
[1736177278190,23.61478931,221.44,221.37,23.61478931]
[1736177278388,23.61478931,221.43,221.36,23.61478931]
[1736177278584,14.66122256,221.46,221.29,20.0]
[1736177278868,23.61478931,221.4,221.34,23.61478931]
[1736177279092,23.61478931,221.4,221.33,23.61478931]
[1736177279629,23.61478931,221.41,221.34,23.61478931]
[1736177280173,23.61478931,221.42,221.35,23.61478931]
[1736177280376,23.61478931,221.42,221.36,23.61478931]
[1736177280876,14.66122256,221.46,221.29,31.2973]
[1736177280877,23.61478931,221.45,221.38,23.61478931]
[1736177281201,25.15008931,221.46,221.39,23.61478931]
[1736177281872,23.61478931,221.42,221.36,23.61478931]
[1736177282293,23.61478931,221.42,221.35,23.61478931]
[1736177282471,23.61478931,221.42,221.36,23.61478931]
[1736177282685,23.61478931,221.43,221.36,23.61478931]
[1736177283313,23.61478931,221.42,221.35,23.61478931]
[1736177283826,23.61478931,221.43,221.36,23.61478931]
[1736177284222,1.5353,221.46,221.35,23.61478931]
[1736177284223,23.61478931,221.42,221.35,23.61478931]
[1736177284433,23.61478931,221.4,221.33,23.61478931]
[1736177285122,23.61478931,221.39,221.32,26.21478931]
[1736177285290,11.2892,221.45,221.33,23.61478931]
[1736177285291,23.61478931,221.4,221.33,23.61478931]
[1736177285500,23.61478931,221.4,221.34,23.61478931]
[1736177285824,23.61478931,221.41,221.34,23.61478931]
[1736177286431,23.61478931,221.45,221.38,23.61478931]
[1736177286728,23.61478931,221.44,221.37,23.61478931]
[1736177287493,23.61478931,221.38,221.28,13.71541012]
[1736177287802,23.61478931,221.32,221.28,13.71541012]
[1736177288226,23.61478931,221.32,221.26,13.71541012]
[1736177288729,23.61478931,221.34,221.26,37.33019943]
[1736177288922,23.61478931,221.36,221.28,23.61478931]
[1736177289096,23.61478931,221.38,221.3,23.61478931]
[1736177289297,23.61478931,221.43,221.36,23.61478931]
[1736177289497,23.61478931,221.42,221.35,23.61478931]
[1736177290222,23.61478931,221.43,221.35,23.61478931]
[1736177290600,8.50534698,221.46,221.39,23.61478931]
[1736177291102,6.97004698,221.46,221.41,23.61478931]
[1736177291298,6.97004698,221.46,221.4,23.61478931]
[1736177291525,37.14073629,221.47,221.4,23.61478931]
[1736177292631,23.61478931,221.44,221.37,23.61478931]
[1736177292935,23.61478931,221.44,221.38,23.61478931]
[1736177293227,23.61478931,221.45,221.39,23.61478931]
[1736177293909,23.61478931,221.46,221.39,23.61478931]
[1736177294110,30.17068931,221.47,221.4,23.61478931]
[1736177294421,23.61478931,221.46,221.4,23.61478931]
[1736177294619,30.17068931,221.47,221.4,23.61478931]
[1736177294928,23.61478931,221.46,221.39,23.61478931]
[1736177296317,23.61478931,221.46,221.4,23.61478931]
[1736177296514,30.17068931,221.47,221.41,23.61478931]
[1736177296713,23.61478931,221.46,221.39,23.61478931]
[1736177297141,23.61478931,221.46,221.4,23.61478931]
[1736177297635,30.17068931,221.47,221.41,23.61478931]
[1736177297930,6.5559,221.47,221.41,23.61478931]
[1736177298136,30.17068931,221.47,221.41,23.61478931]
[1736177298447,30.17068931,221.47,221.4,23.61478931]
[1736177298653,30.17068931,221.47,221.41,23.61478931]
[1736177298835,23.61478931,221.43,221.37,23.61478931]
[1736177299038,23.61478931,221.41,221.35,23.61478931]
[1736177299537,23.61478931,221.41,221.31,11.2963]
[1736177299538,23.61478931,221.43,221.36,23.61478931]
[1736177299925,30.17068931,221.47,221.4,23.61478931]
[1736177300125,6.5559,221.47,221.43,23.61478931]
[1736177300336,6.5559,221.47,221.42,23.61478931]
[1736177300731,6.5559,221.47,221.41,23.61478931]
[1736177300941,6.5559,221.47,221.32,24.29232583]
[1736177300942,23.61478931,221.46,221.39,23.61478931]
[1736177301137,23.61478931,221.43,221.36,23.61478931]
[1736177301453,23.61478931,221.42,221.35,23.61478931]
[1736177301678,23.61478931,221.43,221.36,23.61478931]
[1736177302536,23.61478931,221.42,221.35,23.61478931]
[1736177302856,23.61478931,221.43,221.36,23.61478931]
[1736177303239,23.61478931,221.44,221.37,23.61478931]
[1736177303555,6.5559,221.47,221.41,23.61478931]
[1736177304337,6.5559,221.47,221.42,23.61478931]
[1736177304672,1.5097,221.51,221.46,23.61478931]
[1736177304855,108.01480618,221.57,221.5,23.61478931]
[1736177305054,108.01480618,221.57,221.51,23.61478931]
[1736177305261,77.42996989,221.57,221.53,23.61478931]
[1736177305448,77.42996989,221.57,221.52,23.61478931]
[1736177305761,7.7295,221.57,221.52,23.61478931]
[1736177305960,31.34428931,221.57,221.51,23.61478931]
[1736177306349,7.7295,221.57,221.52,23.61478931]
[1736177306550,7.10096533,221.53,221.52,23.61478931]
[1736177306944,7.10096533,221.53,221.5,23.61478931]
[1736177307144,7.10096533,221.54,221.5,23.61478931]
[1736177307342,7.10096533,221.54,221.49,23.61478931]
[1736177307658,7.10096533,221.54,221.48,23.61478931]
[1736177307850,7.10096533,221.52,221.47,23.61478931]
[1736177308569,7.10096533,221.52,221.44,20.0]
[1736177308570,7.10096533,221.52,221.5,23.61478931]
[1736177308739,7.10096533,221.51,221.5,23.61478931]
[1736177309453,7.10096533,221.53,221.49,23.61478931]
[1736177310368,7.10096533,221.53,221.48,23.61478931]
[1736177311467,7.10096533,221.53,221.49,23.61478931]
[1736177312268,7.10096533,221.53,221.5,23.61478931]
[1736177312769,7.10096533,221.53,221.49,23.61478931]
[1736177313580,7.10096533,221.53,221.5,23.61478931]